{"text_format":"1","workbook":"xlsx","n_sheets":2,"sheets":["Диаграмма2","Лист1"],"not_rendered":{"charts":3,"images":0,"macros":0,"external_links":0,"defined_names":0,"comments":0,"pivot_tables":0},"unopened":[{"sheet":"Диаграмма2","index":0,"reason":"not_a_worksheet"}],"bounds":{"document_bytes":16777216,"sheet_cells":100000,"rows_first":2000,"rows_last":500,"rows_between":2000,"halvings":0,"cell_chars":16384,"cell_head_chars":4096},"cells_cut":0,"cells_raw":0,"read":"whole","date_system":"1900"}

{"sheet":"Лист1","index":1,"n_rows":133,"n_cols":104,"rows_kept":133,"cut":false,"hidden":false,"merged":[]}
[]
[]
[]
[]
[]
[]
[]
[]
[]
[]
[]
[]
[]
[]
[]
[]
[]
[]
[]
[]
[]
[]
[]
[]
[]
[]
[]
[]
[]
[]
[]
[]
[]
[]
[null,null,null,null,null,null,null,null,null,null,null,null,null,null,null,null,null,null,null,null,null,null,null,null,null,null,null,null,null,null,null,null,null,null,null,null,null,null,null,null,null,null,null,null,null,null,null,null,null,null,null,null,null,null,null,null,null,null,null,null,null,null,null,null,null,null,null,null,null,null,null,null,null,null,null,null,null,null,null,null,null,null,null,null,null,null,null,null,null,null,null,null,null,null,null,null,null,null,null,null,null,"^2","-130,53040368325614 + 1,934946623574932*cs61 - 0,005376681647194259*cs61^2"]
[null,null,null,null,null,null,null,null,null,null,null,null,null,null,null,null,null,null,null,null,null,null,null,null,null,null,null,null,null,null,null,null,null,null,null,null,null,null,null,null,null,null,null,null,null,null,null,null,null,null,null,null,null,null,null,null,null,null,null,null,null,null,null,null,null,null,null,null,null,null,null,null,null,null,null,null,null,null,null,null,null,null,null,null,null,null,null,null,null,null,null,null,null,null,null,null,null,null,null,null,null,"^3"," -129,0420198662462 + 1,9051987261019185*cs61 - 0,005196760993224617*cs61^2 - 3,3592096259045*^-7*cs61^3"]
[null,null,null,null,null,null,null,null,null,null,null,null,null,null,null,null,null,null,null,null,null,null,null,null,null,null,null,null,null,null,null,null,null,null,null,null,null,null,null,null,null,null,null,null,null,null,null,null,null,null,null,null,null,null,null,null,null,null,null,null,null,null,null,null,null,null,null,null,null,null,null,null,null,null,null,null,null,null,null,null,null,null,null,null,null,null,null,null,null,null,null,null,null,null,null,null,null,null,null,null,null,"^4"," -130,5161039803445 + 1,9450233923568874*cs61 - 0,00557289635449117*cs61^2 + 1,1461326781549673*^-6*cs61^3 - 2,0751471044820328*^-9*cs61^4"]
[null,null,null,null,null,null,null,null,null,null,null,null,null,null,null,null,null,null,null,null,null,null,null,null,null,null,null,null,null,null,null,null,null,null,null,null,null,null,null,null,null,null,null,null,null,null,null,null,null,null,null,null,null,null,null,null,null,null,null,null,null,null,null,null,null,null,null,null,null,null,null,null,null,null,null,null,null,null,null,null,null,null,null,null,null,null,null,null,null,null,null,null,null,null,null,null,null,null,null,null,null,"^5"," -113,2817556861726 + 1,3598479029314245*cs61 + 0,0019533237174289807*cs61^2 - 0,00004483860782102554*cs61^3 + 1,3206373032801122*^-7*cs61^4 - 1,502500604816498*^-10*cs61^5"]
[null,null,null,null,null,null,null,null,null,null,null,null,null,null,null,null,null,null,null,null,null,null,null,null,null,null,null,null,null,null,null,null,null,null,null,null,null,null,null,null,null,null,null,null,null,null,null,null,null,null,null,null,null,null,null,null,null,null,null,null,null,null,null,null,null,null,null,null,null,null,null,null,null,null,null,null,null,null,null,null,null,null,null,null,null,null,null,null,null,null,null,null,null,null,null,null,null,null,null,null,null,"^6"," 227,7103052686521 - 12,561701230033849*cs61 + 0,22856378116788534*cs61^2 - 0,00193072616422429*cs61^3 + 8,618602167745391*^-6*cs61^4 - 1,979441535584166*^-8*cs61^5 + 1,833544501664083*^-11*cs61^6"]
[null,null,null,null,null,null,null,null,null,null,null,null,null,null,null,null,null,null,null,null,null,null,null,null,null,null,null,null,null,null,null,null,null,null,null,null,null,null,null,null,null,null,null,null,null,null,null,null,null,null,null,null,null,null,null,null,null,null,null,null,null,null,null,null,null,null,null,null,null,null,null,null,null,null,null,null,null,null,null,null,null,null,null,null,null,null,null,null,null,null,null,null,null,null,null,null,null,null,null,null,null,"^7"," 220,47201017968405 - 12,21690639475257*cs61 + 0,22177858250840893*cs61^2 - 0,0018591419639438394*cs61^3 + 8,18059225164256*^-6*cs61^4 - 1,8236748797589942*^-8*cs61^5 + 1,5347577216464446*^-11*cs61^6 + 2,3902843866550833*^-15*cs61^7"]
[null,null,null,null,null,null,null,null,null,null,null,null,null,null,null,null,null,null,null,null,null,null,null,null,null,null,null,null,null,null,null,null,null,null,null,null,null,null,null,null,null,null,null,null,null,null,null,null,null,null,null,null,null,null,null,null,null,null,null,null,null,null,null,null,null,null,null,null,null,null,null,null,null,null,null,null,null,null,null,null,null,null,null,null,null,null,null,null,null,null,null,null,null,null,null,null,null,null,null,null,null,"^8"," 286,8668229968738 - 15,82713195610406*cs61 + 0,3050200857221207*cs61^2 - 0,0029228985949169184*cs61^3 + 0,00001643024935750644*cs61^4 - 5,804970228315143*^-8*cs61^5 + 1,3229528441797575*^-10*cs61^6 - 1,8909751010171636*^-13*cs61^7 + 1,340336549397776*^-16*cs61^8"]
[null,null,null,null,null,null,null,null,null,null,null,null,null,null,null,null,null,null,null,null,null,null,null,null,null,null,null,null,null,null,null,null,null,null,null,null,null,null,null,null,null,null,null,null,null,null,null,null,null,null,null,null,null,null,null,null,null,null,null,null,null,null,null,null,null,null,null,null,null,null,null,null,null,null,null,null,null,null,null,null,null,null,null,null,null,null,null,null,null,null,null,null,null,null,null,null,null,null,null,null,null,"^9"," 165,40740460310153 - 8,412821432953963*cs61 + 0,10923055400801959*cs61^2 + 0,00001409039420427946*cs61^3 - 0,000011171288524237126*cs61^4 + 1,1064158880978404*^-7*cs61^5 - 5,389192607569591*^-10*cs61^6 + 1,4895751933419268*^-12*cs61^7 - 2,2634086427061468*^-15*cs61^8 + 1,4915867481720126*^-18*cs61^9"]
[null,null,null,null,null,null,null,null,null,null,null,null,null,null,null,null,null,null,null,null,null,null,null,null,null,null,null,null,null,null,null,null,null,null,null,null,null,null,null,null,null,null,null,null,null,null,null,null,null,null,null,null,null,null,null,null,null,null,null,null,null,null,null,null,null,null,null,null,null,null,null,null,null,null,null,null,null,null,null,null,null,null,null,null,null,null,null,null,null,null,null,null,null,null,null,null,null,null,null,null,null,"^10"," -1275,6724044191492 + 89,05300492035353*cs61 - 2,787797740422166*cs61^2 + 0,04986744434922161*cs61^3 - 0,0005615044390328185*cs61^4 + 4,185557170124667*^-6*cs61^5 - 2,105124585410781*^-8*cs61^6 + 7,086451355592575*^-11*cs61^7 - 1,5327540162525736*^-13*cs61^8 + 1,9271515752910467*^-16*cs61^9 - 1,0706852406568329*^-19*cs61^10"]
[null,null,null,null,null,null,null,null,null,null,null,null,null,null,null,null,null,null,null,null,null,null,null,null,null,null,null,null,null,null,null,null,null,null,null,null,null,null,null,null,null,null,null,null,null,null,null,null,null,null,null,null,null,null,null,null,null,null,null,null,null,null,null,null,null,null,null,null,null,null,null,null,null,null,null,null,null,null,null,null,null,null,null,null,null,null,null,null,null,null,null,null,null,null,null,null,null,null,null,null,null,"^11"," -1303,4699230887927 + 91,11417187369801*cs61 - 2,8558300869437003*cs61^2 + 0,05118726393073067*cs61^3 - 0,0005782324985609457*cs61^4 + 4,33107599983401*^-6*cs61^5 - 2,1938334831535776*^-8*cs61^6 + 7,465657491349619*^-11*cs61^7 - 1,644228449918331*^-13*cs61^8 + 2,1419321702812793*^-16*cs61^9 - 1,3149718768725322*^-19*cs61^10 + 1,2434760373956732*^-23*cs61^11"]
[null,null,null,null,null,null,null,null,null,null,null,null,null,null,null,null,null,null,null,null,null,null,null,null,null,null,null,null,null,null,null,null,null,null,null,null,null,null,null,null,null,null,null,null,null,null,null,null,null,null,null,null,null,null,null,null,null,null,null,null,null,null,null,null,null,null,null,null,null,null,null,null,null,null,null,null,null,null,null,null,null,null,null,null,null,null,null,null,null,null,null,null,null,null,null,null,null,null,null,null,null,"^12"," -2606,8252779070713 + 196,10909944579055*cs61 - 6,660936086418185*cs61^2 + 0,1332414248130762*cs61^3 - 0,0017512355375719222*cs61^4 + 0,000016046768697696776*cs61^5 - 1,0580598021880291*^-7*cs61^6 + 5,084443895575197*^-10*cs61^7 - 1,77422423244642*^-12*cs61^8 + 4,396697114371803*^-15*cs61^9 - 7,357345639846935*^-18*cs61^10 + 7,470011442696117*^-21*cs61^11 - 3,4792314970748055*^-24*cs61^12"]
[null,null,null,null,null,null,null,null,null,null,null,null,null,null,null,null,null,null,null,null,null,null,null,null,null,null,null,null,null,null,null,null,null,null,null,null,null,null,null,null,null,null,null,null,null,null,null,null,null,null,null,null,null,null,null,null,null,null,null,null,null,null,null,null,null,null,null,null,null,null,null,null,null,null,null,null,null,null,null,null,null,null,null,null,null,null,null,null,null,null,null,null,null,null,null,null,null,null,null,null,null,"^13"," -1735,9832500502164 + 120,38939634179043*cs61 - 3,6725002746285353*cs61^2 + 0,06234104496970149*cs61^3 - 0,0006227766039394369*cs61^4 + 3,318921500079641*^-6*cs61^5 - 1,1066426769321076*^-9*cs61^6 - 1,2779057399044*^-10*cs61^7 + 1,0830917275731632*^-12*cs61^8 - 4,973814325630872*^-15*cs61^9 + 1,446481699014012*^-17*cs61^10 - 2,67201169161656*^-20*cs61^11 + 2,883755732377097*^-23*cs61^12 - 1,392425160214607*^-26*cs61^13"]
[null,null,null,null,null,null,null,null,null,null,null,null,null,null,null,null,null,null,null,null,null,null,null,null,null,null,null,null,null,null,null,null,null,null,null,null,null,null,null,null,null,null,null,null,null,null,null,null,null,null,null,null,null,null,null,null,null,null,null,null,null,null,null,null,null,null,null,null,null,null,null,null,null,null,null,null,null,null,null,null,null,null,null,null,null,null,null,null,null,null,null,null,null,null,null,null,null,null,null,null,null,"^14"," 4648,985088857714 - 473,52020934202784*cs61 + 21,59373097417704*cs61^2 - 0,5893939108550156*cs61^3 + 0,010767745535245076*cs61^4 - 0,00013940677487499578*cs61^5 + 1,3215342357222406*^-6*cs61^6 - 9,33958058649974*^-9*cs61^7 + 4,9553193573941944*^-11*cs61^8 - 1,9678450976012656*^-13*cs61^9 + 5,766281550854758*^-16*cs61^10 - 1,210424503199853*^-18*cs61^11 + 1,7222236593102155*^-21*cs61^12 - 1,4877298378865671*^-24*cs61^13 + 5,889777713532832*^-28*cs61^14"]
[null,null,null,null,null,null,null,null,null,null,null,null,null,null,null,null,null,null,null,null,null,null,null,null,null,null,null,null,null,null,null,null,null,null,null,null,null,null,null,null,null,null,null,null,null,null,null,null,null,null,null,null,null,null,null,null,null,null,null,null,null,null,null,null,null,null,null,null,null,null,null,null,null,null,null,null,null,null,null,null,null,null,null,null,null,null,null,null,null,null,null,null,null,null,null,null,null,null,null,null,null,"^15"," 2271,6907532947967 - 236,80173397334892*cs61 + 10,74183467106547*cs61^2 - 0,2855208726444771*cs61^3 + 0,004954107354646077*cs61^4 - 0,000058893814374217455*cs61^5 + 4,87528071678448*^-7*cs61^6 - 2,757927300166774*^-9*cs61^7 + 9,647324333917435*^-12*cs61^8 - 1,0835224957922114*^-14*cs61^9 - 8,402457239969748*^-17*cs61^10 + 5,476283208331487*^-19*cs61^11 - 1,6707250195954992*^-21*cs61^12 + 2,997039568479893*^-24*cs61^13 - 3,04246384936468*^-27*cs61^14 + 1,3583462043734845*^-30*cs61^15"]
[null,null,null,null,null,null,null,null,null,null,null,null,null,null,null,null,null,null,null,null,null,null,null,null,null,null,null,null,null,null,null,null,null,null,null,null,null,null,null,null,null,null,null,null,null,null,null,null,null,null,null,null,null,null,null,null,null,null,null,null,null,null,null,null,null,null,null,null,null,null,null,null,null,null,null,null,null,null,null,null,null,null,null,null,null,null,null,null,null,null,null,null,null,null,null,null,null,null,null,null,null,"^16"," 879,0989271244755 - 103,65418188796012*cs61 + 4,934511873144558*cs61^2 - 0,1327105283434217*cs61^3 + 0,002254049570571947*cs61^4 - 0,000025227795619110834*cs61^5 + 1,8590378712666816*^-7*cs61^6 - 8,387793416638382*^-10*cs61^7 + 1,5515009595381004*^-12*cs61^8 + 5,442686052227567*^-15*cs61^9 - 3,931130044159314*^-17*cs61^10 + 4,3647980730294594*^-20*cs61^11 + 4,2336642151045134*^-22*cs61^12 - 2,2531818531197405*^-24*cs61^13 + 5,242483738612398*^-27*cs61^14 - 6,276997640730973*^-30*cs61^15 + 3,1536456922518804*^-33*cs61^16"]
[null,null,null,null,null,null,null,null,null,null,null,null,null,null,null,null,null,null,null,null,null,null,null,null,null,null,null,null,null,null,null,null,null,null,null,null,null,null,null,null,null,null,null,null,null,null,null,null,null,null,null,null,null,null,null,null,null,null,null,null,null,null,null,null,null,null,null,null,null,null,null,null,null,null,null,null,null,null,null,null,null,null,null,null,null,null,null,null,null,null,null,null,null,null,null,null,null,null,null,null,null,"^17"," 57,324971735902594 - 27,892491168287314*cs61 + 1,774490613437991*cs61^2 - 0,05408315550330109*cs61^3 + 0,0009612794485582169*cs61^4 - 0,000010592061845867001*cs61^5 + 7,169446572382204*^-8*cs61^6 - 2,5749872471630103*^-10*cs61^7 + 5,258722589174285*^-14*cs61^8 + 3,396693479703093*^-15*cs61^9 - 8,465198180644*^-18*cs61^10 - 3,1321101898255637*^-20*cs61^11 + 1,7260039424138597*^-22*cs61^12 + 1,2332546570326155*^-25*cs61^13 - 2,8728601196533498*^-27*cs61^14 + 9,120251046347766*^-30*cs61^15 - 1,29710120252299*^-32*cs61^16 + 7,328004302773014*^-36*cs61^17"]
[null,null,null,null,null,null,null,null,null,null,null,null,null,null,null,null,null,null,null,null,null,null,null,null,null,null,null,null,null,null,null,null,null,null,null,null,null,null,null,null,null,null,null,null,null,null,null,null,null,null,null,null,null,null,null,null,null,null,null,null,null,null,null,null,null,null,null,null,null,null,null,null,null,null,null,null,null,null,null,null,null,null,null,null,null,null,null,null,null,null,null,null,null,null,null,null,null,null,null,null,null,"^18"," -426,551897007548 + 15,279788837133461*cs61 + 0,044792199838533144*cs61^2 - 0,013165942439982887*cs61^3 + 0,00033121207574594467*cs61^4 - 4,068905844847759*^-6*cs61^5 + 2,7143513662461022*^-8*cs61^6 - 7,958498505675166*^-11*cs61^7 - 1,1947117895937938*^-13*cs61^8 + 1,3922611062039115*^-15*cs61^9 - 3,609412846141631*^-19*cs61^10 - 1,9004678879851255*^-20*cs61^11 + 1,7358033162727273*^-23*cs61^12 + 2,5789314141977944*^-25*cs61^13 - 4,5104828740210825*^-28*cs61^14 - 3,238945628362848*^-30*cs61^15 + 1,5534086240270192*^-32*cs61^16 - 2,6564000475259467*^-35*cs61^17 + 1,6893497613160524*^-38*cs61^18"]
[null,null,null,null,null,null,null,null,null,null,null,null,null,null,null,null,null,null,null,null,null,null,null,null,null,null,null,null,null,null,null,null,null,null,null,null,null,null,null,null,null,null,null,null,null,null,null,null,null,null,null,null,null,null,null,null,null,null,null,null,null,null,null,null,null,null,null,null,null,null,null,null,null,null,null,null,null,null,null,null,null,null,null,null,null,null,null,null,null,null,null,null,null,null,null,null,null,null,null,null,null,"^19"," -706,8349709472883 + 39,558430093412895*cs61 - 0,8931924792232022*cs61^2 + 0,008028712077543557*cs61^3 + 0,000023827202446121364*cs61^4 - 1,1407695996155965*^-6*cs61^5 + 9,588275250430953*^-9*cs61^6 - 2,6577643363741957*^-11*cs61^7 - 7,461976198686153*^-14*cs61^8 + 5,057044503712225*^-16*cs61^9 + 7,133070058047729*^-19*cs61^10 - 7,212407238054235*^-21*cs61^11 - 1,1636118555375759*^-23*cs61^12 + 9,627047452559522*^-26*cs61^13 + 2,0563878840340985*^-28*cs61^14 - 1,3483262293191675*^-30*cs61^15 - 2,6436418500041548*^-33*cs61^16 + 2,5245747536982937*^-35*cs61^17 - 5,303083320101512*^-38*cs61^18 + 3,8117568962202667*^-41*cs61^19"]
[null,null,null,null,null,null,null,null,null,null,null,null,null,null,null,null,null,null,null,null,null,null,null,null,null,null,null,null,null,null,null,null,null,null,null,null,null,null,null,null,null,null,null,null,null,null,null,null,null,null,null,null,null,null,null,null,null,null,null,null,null,null,null,null,null,null,null,null,null,null,null,null,null,null,null,null,null,null,null,null,null,null,null,null,null,null,null,null,null,null,null,null,null,null,null,null,null,null,null,null,null,"^20"," -862,7670607229118 + 52,70877454826775*cs61 - 1,3847682841304259*cs61^2 + 0,018682665513383018*cs61^3 - 0,00012242061855629365*cs61^4 + 1,4792381484681844*^-7*cs61^5 + 2,796566367075725*^-9*cs61^6 - 1,2133636331595945*^-11*cs61^7 - 2,6485028418925447*^-14*cs61^8 + 1,975330137635624*^-16*cs61^9 + 4,2483382985007906*^-19*cs61^10 - 2,4869235696444997*^-21*cs61^11 - 8,62719445444336*^-24*cs61^12 + 2,3313315053147384*^-26*cs61^13 + 1,532773600895975*^-28*cs61^14 - 1,1975298864790804*^-31*cs61^15 - 2,3486856591809856*^-33*cs61^16 + 2,5492286345036367*^-37*cs61^17 + 3,7198321516174725*^-38*cs61^18 - 1,0018108003275048*^-40*cs61^19 + 8,223367702985948*^-44*cs61^20"]
[null,null,null,null,null,null,null,null,null,null,null,null,null,null,null,null,null,null,null,null,null,null,null,null,null,null,null,null,null,null,null,null,null,null,null,null,null,null,null,null,null,null,null,null,null,null,null,null,null,null,null,null,null,null,null,null,null,null,null,null,null,null,null,null,null,null,null,null,null,null,null,null,null,null,null,null,null,null,null,null,null,null,null,null,null,null,null,null,null,null,null,null,null,null,null,null,null,null,null,null,null,"^21"," -942,086644848266 + 59,23752750743197*cs61 - 1,6216155775137422*cs61^2 + 0,023624233398886807*cs61^3 - 0,0001869071702259428*cs61^4 + 6,76022410404157*^-7*cs61^5 + 3,504033241404163*^-10*cs61^6 - 8,996769596422556*^-12*cs61^7 - 1,2054742324009215*^-15*cs61^8 + 1,1206009874913262*^-16*cs61^9 + 1,3373475772209868*^-19*cs61^10 - 1,209314793048761*^-21*cs61^11 - 3,943699786489838*^-24*cs61^12 + 7,19819295064363*^-27*cs61^13 + 6,731832740020234*^-29*cs61^14 + 6,081171860504256*^-32*cs61^15 - 7,674205013021402*^-34*cs61^16 - 2,4279221485300116*^-36*cs61^17 + 7,062170473722745*^-39*cs61^18 + 4,3090690370763025*^-41*cs61^19 - 1,6745807280970541*^-43*cs61^20 + 1,6155718312361626*^-46*cs61^21"]
[null,null,null,null,null,null,null,null,null,null,null,null,null,null,null,null,null,null,null,null,null,null,null,null,null,null,null,null,null,null,null,null,null,null,null,null,null,null,null,null,null,null,null,null,null,null,null,null,null,null,null,null,null,null,null,null,null,null,null,null,null,null,null,null,null,null,null,null,null,null,null,null,null,null,null,null,null,null,null,null,null,null,null,null,null,null,null,null,null,null,null,null,null,null,null,null,null,null,null,null,null,"^22"," -974,0740569753997 + 61,81283982840491*cs61 - 1,712525016552237*cs61^2 + 0,025456091792044378*cs61^3 - 0,0002097222356495882*cs61^4 + 8,503881204167595*10^-7*cs61^5 - 3,5823393171761096*10^-10*cs61^6 - 8,672665057753797*10^-12*cs61^7 + 7,782268865369579*10^-15*cs61^8 + 9,660249751656043*10^-17*cs61^9 + 1,3240446987562582*10^-20*cs61^10 - 1,0248284192075756*10^-21*cs61^11 - 2,0581758221349453*10^-24*cs61^12 + 6,706367905234249*10^-27*cs61^13 + 3,8300816277772304*10^-29*cs61^14 + 2,2188760699917885*10^-32*cs61^15 - 3,656983243422924*10^-34*cs61^16 - 1,1792803111779983*10^-36*cs61^17 + 1,2434804689533443*10^-39*cs61^18 + 1,619443189336767*10^-41*cs61^19 + 1,229079829009264*10^-44*cs61^20 - 1,9532968575349412*10^-46*cs61^21 + 2,5071516555587976*10^-49*cs61^22"]
[]
[]
[]
[]
[null,null,null,null,null,null,null,null,null,null,null,null,null,null,null,null,null,null,null,null,null,null,null,null,null,null,null,null,null,null,null,null,null,null,null,null,null,null,null,null,null,null,null,null,null,null,null,null,null,null,null,null,null,null,null,null,null,null,null,null,null,null,null,null,null,null,null,null,null,null,null,null,null,null,null,null,null,null,null,null,null,null,null,null,null,null,null,null,null,null,null,null,null,null,null,null,"x","y=ax^2+bx","ax^3+bx^2+cx+d","ax^4+bx^3+cx^2+dx+e","ax^5+bx^4+cx^3+dx^2+ex+f","ax^6+bx^5+cx^4+dx^3+ex^2+fx+g","ax^7+bx^6+cx^5+dx^4+ex^3+fx^2+gx+h","ax^8+bx^7+cx^6+dx^5+ex^4+fx^3+gx^2+hx+i"]
[null,null,null,null,null,null,null,null,null,null,null,null,null,null,null,null,null,null,null,null,null,null,null,null,null,null,null,null,null,null,null,null,null,null,null,null,null,null,null,null,null,null,null,null,null,null,null,null,null,null,null,null,null,null,null,null,null,null,null,null,null,null,null,null,null,null,null,null,null,null,null,null,null,null,null,null,null,null,null,null,null,null,null,null,null,null,null,null,null,null,-12.04052079386018,null,null,null,77.670503834057186,null,-260,{"$f":"-130.53+1.93495*CS61-0.00537668*CS61^2","v":-997.08056799999997},{"$f":"-129.042+1.9052*CS61-0.00519676*CS61^2-3.35921*10^-7*CS61^3","v":-969.79082850400005},{"$f":"-130.516+1.94502*CS61-0.0055729*CS61^2+1.14613*10^-6*CS61^3-2.07515*10^-9*CS61^4","v":-1042.576558344},{"$f":"-113.282+1.35985*CS61+0.00195332*CS61^2-0.0000448386*CS61^3+1.32064*10^-7*CS61^4-1.5025*10^-10*CS61^5","v":1235.3031246400001},{"$f":"227.71-12.5617*CS61+0.228564*CS61^2-0.00193073*CS61^3+8.6186*10^-6*CS61^4-1.97944*10^-8*CS61^5+1.83354*10^-11*CS61^6","v":121446.6876447104},null,{"$f":"286.867-15.8271*CS61+0.30502*CS61^2-0.0029229*CS61^3+0.0000164302*CS61^4-5.80497*10^-8*CS61^5+1.32295*10^-10*CS61^6-1.89098*10^-13*CS61^7+1.34034*10^-16*CS61^8","v":279302.25506059045}]
[null,null,null,null,null,null,null,null,null,null,null,null,null,null,null,null,null,null,null,null,null,null,null,null,null,null,null,null,null,null,null,null,null,null,null,null,null,null,null,null,null,null,null,null,null,null,null,null,null,null,null,null,null,null,null,null,null,null,null,null,null,null,null,null,null,null,null,null,null,null,null,null,null,null,null,null,null,null,null,null,null,null,null,null,null,null,null,null,null,null,-1.7973551472602267,null,null,null,88.780481148559375,null,{"$f":"CS61+10","v":-250},{"$f":"-130.53+1.93495*CS62-0.00537668*CS62^2","v":-950.31000000000006},{"$f":"-129.042+1.9052*CS62-0.00519676*CS62^2-3.35921*10^-7*CS62^3","v":-924.89073437499997},{"$f":"-130.516+1.94502*CS62-0.0055729*CS62^2+1.14613*10^-6*CS62^3-2.07515*10^-9*CS62^4","v":-991.09158593749999},{"$f":"-113.282+1.35985*CS62+0.00195332*CS62^2-0.0000448386*CS62^3+1.32064*10^-7*CS62^4-1.5025*10^-10*CS62^5","v":1032.0446406250001},{"$f":"227.71-12.5617*CS62+0.228564*CS62^2-0.00193073*CS62^3+8.6186*10^-6*CS62^4-1.97944*10^-8*CS62^5+1.83354*10^-11*CS62^6","v":105294.33226562501},null,{"$f":"286.867-15.8271*CS62+0.30502*CS62^2-0.0029229*CS62^3+0.0000164302*CS62^4-5.80497*10^-8*CS62^5+1.32295*10^-10*CS62^6-1.89098*10^-13*CS62^7+1.34034*10^-16*CS62^8","v":235732.73990039062}]
[null,null,null,null,null,null,null,null,null,null,null,null,null,null,null,null,null,null,null,null,null,null,null,null,null,null,null,null,null,null,null,null,null,null,null,null,null,null,null,null,null,null,null,null,null,null,null,null,null,null,null,null,null,null,null,null,null,null,null,null,null,null,null,null,null,null,null,null,null,null,null,null,null,null,null,null,null,null,null,null,null,null,null,null,null,null,null,null,null,null,8.4887705865922598,null,null,null,99.787573599806947,null,{"$f":"CS62+10","v":-240},-904.61476800000003,-880.979604096,-941.04879078399995,850.50912064000011,90958.14821271041,null,{"$f":"286.867-15.8271*CS63+0.30502*CS63^2-0.0029229*CS63^3+0.0000164302*CS63^4-5.80497*10^-8*CS63^5+1.32295*10^-10*CS63^6-1.89098*10^-13*CS63^7+1.34034*10^-16*CS63^8","v":198225.2238025821}]
[null,null,null,null,null,null,null,null,null,null,null,null,null,null,null,null,null,null,null,null,null,null,null,null,null,null,null,null,null,null,null,null,null,null,null,null,null,null,null,null,null,null,null,null,null,null,null,null,null,null,null,null,null,null,null,null,null,null,null,null,null,null,null,null,null,null,null,null,null,null,null,null,null,null,null,null,null,null,null,null,null,null,null,null,null,null,null,null,null,null,18.425630070383978,null,null,null,111.41510895546989,null,-230,-859.99487199999999,-838.05945319300008,-892.42909422150001,689.10964601500018,78272.156963090601,null,{"$f":"286.867-15.8271*CS64+0.30502*CS64^2-0.0029229*CS64^3+0.0000164302*CS64^4-5.80497*10^-8*CS64^5+1.32295*10^-10*CS64^6-1.89098*10^-13*CS64^7+1.34034*10^-16*CS64^8","v":166039.29452584841}]
[null,null,null,null,null,null,null,null,null,null,null,null,null,null,null,null,null,null,null,null,null,null,null,null,null,null,null,null,null,null,null,null,null,null,null,null,null,null,null,null,null,null,null,null,null,null,null,null,null,null,null,null,null,null,null,null,null,null,null,null,null,null,null,null,null,null,null,null,null,null,null,null,null,null,null,null,null,null,null,null,null,null,null,null,null,null,null,null,null,null,27.546371185477906,null,null,null,124.43165171290691,null,-220,-816.45031199999994,-796.13229719200001,-845.21391562400004,546.33426544000008,67081.9534738816,null,{"$f":"286.867-15.8271*CS65+0.30502*CS65^2-0.0029229*CS65^3+0.0000164302*CS65^4-5.80497*10^-8*CS65^5+1.32295*10^-10*CS65^6-1.89098*10^-13*CS65^7+1.34034*10^-16*CS65^8","v":138512.14322512268}]
[null,null,null,null,null,null,null,null,null,null,null,null,null,null,null,null,null,null,null,null,null,null,null,null,null,null,null,null,null,null,null,null,null,null,null,null,null,null,null,null,null,null,null,null,null,null,null,null,null,null,null,null,null,null,null,null,null,null,null,null,null,null,null,null,null,null,null,null,null,null,null,null,null,null,null,null,null,null,null,null,null,null,null,null,null,null,null,null,null,null,35.22321722919262,null,null,null,139.61844161596323,null,-210,-773.981088,-755.20015161899994,-799.38517240149997,420.74419196500003,57244.158414423408,null,{"$f":"286.867-15.8271*CS66+0.30502*CS66^2-0.0029229*CS66^3+0.0000164302*CS66^4-5.80497*10^-8*CS66^5+1.32295*10^-10*CS66^6-1.89098*10^-13*CS66^7+1.34034*10^-16*CS66^8","v":115051.82424408439}]
[null,null,null,null,null,null,null,null,null,null,null,null,null,null,null,null,null,null,null,null,null,null,null,null,null,null,null,null,null,null,null,null,null,null,null,null,null,null,null,null,null,null,null,null,null,null,null,null,null,null,null,null,null,null,null,null,null,null,null,null,null,null,null,null,null,null,null,null,null,null,null,null,null,null,null,null,null,null,null,null,null,null,null,null,null,null,null,null,null,null,40.627077912090584,null,null,null,157.45866657166536,null,-200,-732.58719999999994,-715.26503200000002,-754.92528000000004,310.97200000000004,48625.883600000008,null,{"$f":"286.867-15.8271*CS67+0.30502*CS67^2-0.0029229*CS67^3+0.0000164302*CS67^4-5.80497*10^-8*CS67^5+1.32295*10^-10*CS67^6-1.89098*10^-13*CS67^7+1.34034*10^-16*CS67^8","v":95130.972440000012}]
[null,null,null,null,null,null,null,null,null,null,null,null,null,null,null,null,null,null,null,null,null,null,null,null,null,null,null,null,null,null,null,null,null,null,null,null,null,null,null,null,null,null,null,null,null,null,null,null,null,null,null,null,null,null,null,null,null,null,null,null,null,null,null,null,null,null,null,null,null,null,null,null,null,null,null,null,null,null,null,null,null,null,null,null,null,null,null,null,null,null,42.881109099167055,null,null,null,177.44189641688823,null,-190,-692.26864799999998,-676.32895386099995,-711.81715190149998,215.71982231500004,41104.210627047396,null,{"$f":"286.867-15.8271*CS68+0.30502*CS68^2-0.0029229*CS68^3+0.0000164302*CS68^4-5.80497*10^-8*CS68^5+1.32295*10^-10*CS68^6-1.89098*10^-13*CS68^7+1.34034*10^-16*CS68^8","v":78280.956350802953}]
[null,null,null,null,null,null,null,null,null,null,null,null,null,null,null,null,null,null,null,null,null,null,null,null,null,null,null,null,null,null,null,null,null,null,null,null,null,null,null,null,null,null,null,null,null,null,null,null,null,null,null,null,null,null,null,null,null,null,null,null,null,null,null,null,null,null,null,null,null,null,null,null,null,null,null,null,null,null,null,null,null,null,null,null,null,null,null,null,null,null,41.513123362477444,null,null,null,197.7094718535354,null,-180,-653.02543200000002,-638.39393272799998,-670.04419962399993,133.75754704000002,34565.6827098496,null,{"$f":"286.867-15.8271*CS69+0.30502*CS69^2-0.0029229*CS69^3+0.0000164302*CS69^4-5.80497*10^-8*CS69^5+1.32295*10^-10*CS69^6-1.89098*10^-13*CS69^7+1.34034*10^-16*CS69^8","v":64086.446054735708}]
[null,null,null,null,null,null,null,null,null,null,null,null,null,null,null,null,null,null,null,null,null,null,null,null,null,null,null,null,null,null,null,null,null,null,null,null,null,null,null,null,null,null,null,null,null,null,null,null,null,null,null,null,null,null,null,null,null,null,null,null,null,null,null,null,null,null,null,null,null,null,null,null,null,null,null,null,null,null,null,null,null,null,null,null,null,null,null,null,null,null,36.818473759550741,null,null,null,216.18701649168653,null,-170,-614.85755199999994,-601.46198412700005,-629.59033272150009,63.921014664999987,28905.809718722601,null,{"$f":"286.867-15.8271*CS70+0.30502*CS70^2-0.0029229*CS70^3+0.0000164302*CS70^4-5.80497*10^-8*CS70^5+1.32295*10^-10*CS70^6-1.89098*10^-13*CS70^7+1.34034*10^-16*CS70^8","v":52180.37511329924}]
[null,null,null,null,null,null,null,null,null,null,null,null,null,null,null,null,null,null,null,null,null,null,null,null,null,null,null,null,null,null,null,null,null,null,null,null,null,null,null,null,null,null,null,null,null,null,null,null,null,null,null,null,null,null,null,null,null,null,null,null,null,null,null,null,null,null,null,null,null,null,null,null,null,null,null,null,null,null,null,null,null,null,null,null,null,null,null,null,null,null,29.62370109403356,null,null,null,232.01459248387098,null,-160,-577.76500799999997,-565.53512358400008,-590.43995878399994,5.1102150400000141,24028.586419686402,null,{"$f":"286.867-15.8271*CS71+0.30502*CS71^2-0.0029229*CS71^3+0.0000164302*CS71^4-5.80497*10^-8*CS71^5+1.32295*10^-10*CS71^6-1.89098*10^-13*CS71^7+1.34034*10^-16*CS71^8","v":42239.276528682094}]
[null,null,null,null,null,null,null,null,null,null,null,null,null,null,null,null,null,null,null,null,null,null,null,null,null,null,null,null,null,null,null,null,null,null,null,null,null,null,null,null,null,null,null,null,null,null,null,null,null,null,null,null,null,null,null,null,null,null,null,null,null,null,null,null,null,null,null,null,null,null,null,null,null,null,null,null,null,null,null,null,null,null,null,null,null,null,null,null,null,null,20.796145877260283,null,null,null,245.50208166378295,null,-150,-541.7478000000001,-530.61536662499998,-552.57798343749994,-43.712515624999995,19846.023915624999,null,{"$f":"286.867-15.8271*CS72+0.30502*CS72^2-0.0029229*CS72^3+0.0000164302*CS72^4-5.80497*10^-8*CS72^5+1.32295*10^-10*CS72^6-1.89098*10^-13*CS72^7+1.34034*10^-16*CS72^8","v":33978.973187265627}]
[null,null,null,null,null,null,null,null,null,null,null,null,null,null,null,null,null,null,null,null,null,null,null,null,null,null,null,null,null,null,null,null,null,null,null,null,null,null,null,null,null,null,null,null,null,null,null,null,null,null,null,null,null,null,null,null,null,null,null,null,null,null,null,null,null,null,null,null,null,null,null,null,null,null,null,null,null,null,null,null,null,null,null,null,null,null,null,null,null,null,11.014147899531801,null,null,null,257.40153207680117,null,-140,-506.80592799999999,-496.70472877599997,-515.98981034400003,-83.524297759999982,16277.694288934401,null,{"$f":"286.867-15.8271*CS73+0.30502*CS73^2-0.0029229*CS73^3+0.0000164302*CS73^4-5.80497*10^-8*CS73^5+1.32295*10^-10*CS73^6-1.89098*10^-13*CS73^7+1.34034*10^-16*CS73^8","v":27150.603801227113}]
[null,null,null,null,null,null,null,null,null,null,null,null,null,null,null,null,null,null,null,null,null,null,null,null,null,null,null,null,null,null,null,null,null,null,null,null,null,null,null,null,null,null,null,null,null,null,null,null,null,null,null,null,null,null,null,null,null,null,null,null,null,null,null,null,null,null,null,null,null,null,null,null,null,null,null,null,null,null,null,null,null,null,null,null,null,null,null,null,null,null,0.77696421533625837,null,null,null,268.49457606893122,null,-130,-472.939392,-463.80522556299996,-480.66134120150002,-115.24351143500004,13250.2884456586,null,{"$f":"286.867-15.8271*CS74+0.30502*CS74^2-0.0029229*CS74^3+0.0000164302*CS74^4-5.80497*10^-8*CS74^5+1.32295*10^-10*CS74^6-1.89098*10^-13*CS74^7+1.34034*10^-16*CS74^8","v":21536.965900687512}]
[null,null,null,null,null,null,null,null,null,null,null,null,null,null,null,null,null,null,null,null,null,null,null,null,null,null,null,null,null,null,null,null,null,null,null,null,null,null,null,null,null,null,null,null,null,null,null,null,null,null,null,null,null,null,null,null,null,null,null,null,null,null,null,null,null,null,null,null,null,null,null,null,null,null,null,null,null,null,null,null,null,null,null,null,null,null,null,null,null,null,-9.5127964766194051,null,null,null,279.51165244986362,null,-120,-440.14819199999999,-431.91887251200001,-446.57897574400005,-139.73159935999996,10697.187161113599,null,{"$f":"286.867-15.8271*CS75+0.30502*CS75^2-0.0029229*CS75^3+0.0000164302*CS75^4-5.80497*10^-8*CS75^5+1.32295*10^-10*CS75^6-1.89098*10^-13*CS75^7+1.34034*10^-16*CS75^8","v":16949.157969276006}]
[null,null,null,null,null,null,null,null,null,null,null,null,null,null,null,null,null,null,null,null,null,null,null,null,null,null,null,null,null,null,null,null,null,null,null,null,null,null,null,null,null,null,null,null,null,null,null,null,null,null,null,null,null,null,null,null,null,null,null,null,null,null,null,null,null,null,null,null,null,null,null,null,null,null,null,null,null,null,null,null,null,null,null,null,null,null,null,null,null,null,null,null,null,null,null,null,-110,-408.43232799999998,-401.04768514900002,-413.72961174150004,-157.79486988499997,8558.0453269993995,null,{"$f":"286.867-15.8271*CS76+0.30502*CS76^2-0.0029229*CS76^3+0.0000164302*CS76^4-5.80497*10^-8*CS76^5+1.32295*10^-10*CS76^6-1.89098*10^-13*CS76^7+1.34034*10^-16*CS76^8","v":13223.503356408177}]
[null,null,null,null,null,null,null,null,null,null,null,null,null,null,null,null,null,null,null,null,null,null,null,null,null,null,null,null,null,null,null,null,null,null,null,null,null,null,null,null,null,null,null,null,null,null,null,null,null,null,null,null,null,null,null,null,null,null,null,null,null,null,null,null,null,null,null,null,null,null,null,null,null,null,null,null,null,null,null,null,null,null,null,null,null,null,null,null,null,null,null,null,null,null,null,null,-100,-377.79179999999997,-371.19367900000003,-382.10064500000004,-170.18629999999999,6778.3894000000009,null,{"$f":"286.867-15.8271*CS77+0.30502*CS77^2-0.0029229*CS77^3+0.0000164302*CS77^4-5.80497*10^-8*CS77^5+1.32295*10^-10*CS77^6-1.89098*10^-13*CS77^7+1.34034*10^-16*CS77^8","v":10218.73914}]
[null,null,null,null,null,null,null,null,null,null,null,null,null,null,null,null,null,null,null,null,null,null,null,null,null,null,null,null,null,null,null,null,null,null,null,null,null,null,null,null,null,null,null,null,null,null,null,null,null,null,null,null,null,null,null,null,null,null,null,null,null,null,null,null,null,null,null,null,null,null,null,null,null,null,null,null,null,null,null,null,null,null,null,null,null,null,null,null,null,null,null,null,null,null,null,null,-90,-348.226608,-342.35886959099997,-351.67996936149996,-177.60733833500004,5309.2280518713997,null,{"$f":"286.867-15.8271*CS78+0.30502*CS78^2-0.0029229*CS78^3+0.0000164302*CS78^4-5.80497*10^-8*CS78^5+1.32295*10^-10*CS78^6-1.89098*10^-13*CS78^7+1.34034*10^-16*CS78^8","v":7813.4536537648719}]
[null,null,null,null,null,null,null,null,null,null,null,null,null,null,null,null,null,null,null,null,null,null,null,null,null,null,null,null,null,null,null,null,null,null,null,null,null,null,null,null,null,null,null,null,null,null,null,null,null,null,null,null,null,null,null,null,null,null,null,null,null,null,null,null,null,null,null,null,null,null,null,null,null,null,null,null,null,null,null,null,null,null,null,null,null,null,null,null,null,null,null,null,null,null,null,null,-80,-319.73675200000002,-314.54527244799999,-322.45597670399997,-180.70970815999999,4106.6760210176008,null,{"$f":"286.867-15.8271*CS79+0.30502*CS79^2-0.0029229*CS79^3+0.0000164302*CS79^4-5.80497*10^-8*CS79^5+1.32295*10^-10*CS79^6-1.89098*10^-13*CS79^7+1.34034*10^-16*CS79^8","v":5903.7569336658944}]
[null,null,null,null,null,null,null,null,null,null,null,null,null,null,null,null,null,null,null,null,null,null,null,null,null,null,null,null,null,null,null,null,null,null,null,null,null,null,null,null,null,null,null,null,null,null,null,null,null,null,null,null,null,null,null,null,null,null,null,null,null,null,null,null,null,null,null,null,null,null,null,null,null,null,null,null,null,null,null,null,null,null,null,null,null,null,null,null,null,null,null,null,null,null,null,null,-70,-292.32223199999999,-287.75490309700001,-294.41755694149998,-180.09721038499998,3131.5911655545997,null,{"$f":"286.867-15.8271*CS80+0.30502*CS80^2-0.0029229*CS80^3+0.0000164302*CS80^4-5.80497*10^-8*CS80^5+1.32295*10^-10*CS80^6-1.89098*10^-13*CS80^7+1.34034*10^-16*CS80^8","v":4401.1688785208626}]
[null,null,null,null,null,null,null,null,null,null,null,null,null,null,null,null,null,null,null,null,null,null,null,null,null,null,null,null,null,null,null,null,null,null,null,null,null,null,null,null,null,null,null,null,null,null,null,null,null,null,null,null,null,null,null,null,null,null,null,null,null,null,null,null,null,null,null,null,null,null,null,null,null,null,null,null,null,null,null,null,null,null,null,null,null,null,null,null,null,null,null,null,null,null,null,null,-60,-265.983048,-261.98977706399995,-267.55409802399998,-176.32752656000002,2349.2247178624002,null,{"$f":"286.867-15.8271*CS81+0.30502*CS81^2-0.0029229*CS81^3+0.0000164302*CS81^4-5.80497*10^-8*CS81^5+1.32295*10^-10*CS81^6-1.89098*10^-13*CS81^7+1.34034*10^-16*CS81^8","v":3230.7104601823744}]
[null,null,null,null,null,null,null,null,null,null,null,null,null,null,null,null,null,null,null,null,null,null,null,null,null,null,null,null,null,null,null,null,null,null,null,null,null,null,null,null,null,null,null,null,null,null,null,null,null,null,null,null,null,null,null,null,null,null,null,null,null,null,null,null,null,null,null,null,null,null,null,null,null,null,null,null,null,null,null,null,null,null,null,null,null,null,null,null,null,null,null,null,null,null,null,null,-50,-240.7192,-237.251909875,-241.85548593750002,-169.914021875,1728.8847406249999,null,{"$f":"286.867-15.8271*CS82+0.30502*CS82^2-0.0029229*CS82^3+0.0000164302*CS82^4-5.80497*10^-8*CS82^5+1.32295*10^-10*CS82^6-1.89098*10^-13*CS82^7+1.34034*10^-16*CS82^8","v":2329.1838591406254}]
[null,null,null,null,null,null,null,null,null,null,null,null,null,null,null,null,null,null,null,null,null,null,null,null,null,null,null,null,null,null,null,null,null,null,null,null,null,null,null,null,null,null,null,null,null,null,null,null,null,null,null,null,null,null,null,null,null,null,null,null,null,null,null,null,null,null,null,null,null,null,null,null,null,null,null,null,null,null,null,null,null,null,null,null,null,null,null,null,null,null,null,null,null,null,null,null,-40,-216.530688,-213.54331705600001,-217.31210470400001,-161.32754815999999,1243.6127843583999,null,{"$f":"286.867-15.8271*CS83+0.30502*CS83^2-0.0029229*CS83^3+0.0000164302*CS83^4-5.80497*10^-8*CS83^5+1.32295*10^-10*CS83^6-1.89098*10^-13*CS83^7+1.34034*10^-16*CS83^8","v":1643.6279418215427}]
[null,null,null,null,null,null,null,null,null,null,null,null,null,null,null,null,null,null,null,null,null,null,null,null,null,null,null,null,null,null,null,null,null,null,null,null,null,null,null,null,null,null,null,null,null,null,null,null,null,null,null,null,null,null,null,null,null,null,null,null,null,null,null,null,null,null,null,null,null,null,null,null,null,null,null,null,null,null,null,null,null,null,null,null,null,null,null,null,null,null,null,null,null,null,null,null,-30,-193.41751199999999,-190.86601413300002,-193.91483638150004,-150.99824688499999,869.87374642660018,null,{"$f":"286.867-15.8271*CS84+0.30502*CS84^2-0.0029229*CS84^3+0.0000164302*CS84^4-5.80497*10^-8*CS84^5+1.32295*10^-10*CS84^6-1.89098*10^-13*CS84^7+1.34034*10^-16*CS84^8","v":1129.9360362779676}]
[null,null,null,null,null,null,null,null,null,null,null,null,null,null,null,null,null,null,null,null,null,null,null,null,null,null,null,null,null,null,null,null,null,null,null,null,null,null,null,null,null,null,null,null,null,null,null,null,null,null,null,null,null,null,null,null,null,null,null,null,null,null,null,null,null,null,null,null,null,null,null,null,null,null,null,null,null,null,null,null,null,null,null,null,null,null,null,null,null,null,null,null,null,null,null,null,-20,-171.37967199999997,-169.22201663199999,-171.65506106399997,-139.31735216000001,587.25893154559992,null,{"$f":"286.867-15.8271*CS85+0.30502*CS85^2-0.0029229*CS85^3+0.0000164302*CS85^4-5.80497*10^-8*CS85^5+1.32295*10^-10*CS85^6-1.89098*10^-13*CS85^7+1.34034*10^-16*CS85^8","v":751.62350339671048}]
[null,null,null,null,null,null,null,null,null,null,null,null,null,null,null,null,null,null,null,null,null,null,null,null,null,null,null,null,null,null,null,null,null,null,null,null,null,null,null,null,null,null,null,null,null,null,null,null,null,null,null,null,null,null,null,null,null,null,null,null,null,null,null,null,null,null,null,null,null,null,null,null,null,null,null,null,null,null,null,null,null,null,null,null,null,null,null,null,null,null,null,null,null,null,null,null,-10,-150.417168,-148.61334007900001,-150.52465688149996,-126.638993735,378.2023137754,null,{"$f":"286.867-15.8271*CS86+0.30502*CS86^2-0.0029229*CS86^3+0.0000164302*CS86^4-5.80497*10^-8*CS86^5+1.32295*10^-10*CS86^6-1.89098*10^-13*CS86^7+1.34034*10^-16*CS86^8","v":478.73314116938349}]
[null,null,null,null,null,null,null,null,null,null,null,null,null,null,null,null,null,null,null,null,null,null,null,null,null,null,null,null,null,null,null,null,null,null,null,null,null,null,null,null,null,null,null,null,null,null,null,null,null,null,null,null,null,null,null,null,null,null,null,null,null,null,null,null,null,null,null,null,null,null,null,null,null,null,null,null,null,null,null,null,null,null,null,null,null,null,null,null,null,null,null,null,null,null,null,null,0,-130.53,-129.042,-130.51599999999999,-113.282,227.71,null,{"$f":"286.867-15.8271*CS87+0.30502*CS87^2-0.0029229*CS87^3+0.0000164302*CS87^4-5.80497*10^-8*CS87^5+1.32295*10^-10*CS87^6-1.89098*10^-13*CS87^7+1.34034*10^-16*CS87^8","v":286.86700000000002}]
[null,null,null,null,null,null,null,null,null,null,null,null,null,null,null,null,null,null,null,null,null,null,null,null,null,null,null,null,null,null,null,null,null,null,null,null,null,null,null,null,null,null,null,null,null,null,null,null,null,null,null,null,null,null,null,null,null,null,null,null,null,null,null,null,null,null,null,null,null,null,null,null,null,null,null,null,null,null,null,null,null,null,null,null,null,null,null,null,null,null,null,null,null,null,null,null,10,-111.71816799999999,-110.51001192100001,-111.6219646215,-99.531700985000001,123.1028948954,null,{"$f":"286.867-15.8271*CS88+0.30502*CS88^2-0.0029229*CS88^3+0.0000164302*CS88^4-5.80497*10^-8*CS88^5+1.32295*10^-10*CS88^6-1.89098*10^-13*CS88^7+1.34034*10^-16*CS88^8","v":156.3337274474234}]
[null,null,null,null,null,null,null,null,null,null,null,null,null,null,null,null,null,null,null,null,null,null,null,null,null,null,null,null,null,null,null,null,null,null,null,null,null,null,null,null,null,null,null,null,null,null,null,null,null,null,null,null,null,null,null,null,null,null,null,null,null,null,null,null,null,null,null,null,null,null,null,null,null,null,null,null,null,null,null,null,null,null,null,null,null,null,null,null,null,null,null,null,null,null,null,null,20,-93.981672000000003,-93.019391368000001,-93.835922984000007,-85.641731359999994,53.772567385599999,null,{"$f":"286.867-15.8271*CS89+0.30502*CS89^2-0.0029229*CS89^3+0.0000164302*CS89^4-5.80497*10^-8*CS89^5+1.32295*10^-10*CS89^6-1.89098*10^-13*CS89^7+1.34034*10^-16*CS89^8","v":71.401101225830459}]
[null,null,null,null,null,null,null,null,null,null,null,null,null,null,null,null,null,null,null,null,null,null,null,null,null,null,null,null,null,null,null,null,null,null,null,null,null,null,null,null,null,null,null,null,null,null,null,null,null,null,null,null,null,null,null,null,null,null,null,null,null,null,null,null,null,null,null,null,null,null,null,null,null,null,null,null,null,null,null,null,null,null,null,null,null,null,null,null,null,null,null,null,null,null,null,null,30,-77.320512000000008,-76.572153866999983,-77.151745361499991,-71.835833434999998,10.950318586599991,null,{"$f":"286.867-15.8271*CS90+0.30502*CS90^2-0.0029229*CS90^3+0.0000164302*CS90^4-5.80497*10^-8*CS90^5+1.32295*10^-10*CS90^6-1.89098*10^-13*CS90^7+1.34034*10^-16*CS90^8","v":19.643949711447455}]
[null,null,null,null,null,null,null,null,null,null,null,null,null,null,null,null,null,null,null,null,null,null,null,null,null,null,null,null,null,null,null,null,null,null,null,null,null,null,null,null,null,null,null,null,null,null,null,null,null,null,null,null,null,null,null,null,null,null,null,null,null,null,null,null,null,null,null,null,null,null,null,null,null,null,null,null,null,null,null,null,null,null,null,null,null,null,null,null,null,null,null,null,null,null,null,null,40,-61.734688000000006,-61.170314944000005,-61.563800063999999,-58.309660159999993,-12.510548761600026,null,{"$f":"286.867-15.8271*CS91+0.30502*CS91^2-0.0029229*CS91^3+0.0000164302*CS91^4-5.80497*10^-8*CS91^5+1.32295*10^-10*CS91^6-1.89098*10^-13*CS91^7+1.34034*10^-16*CS91^8","v":-8.6218003710974767}]
[null,null,null,null,null,null,null,null,null,null,null,null,null,null,null,null,null,null,null,null,null,null,null,null,null,null,null,null,null,null,null,null,null,null,null,null,null,null,null,null,null,null,null,null,null,null,null,null,null,null,null,null,null,null,null,null,null,null,null,null,null,null,null,null,null,null,null,null,null,null,null,null,null,null,null,null,null,null,null,null,null,null,null,null,null,null,null,null,null,null,null,null,null,null,null,null,50,-47.224199999999996,-46.815890124999996,-47.066953437499983,-45.232578124999989,-22.339259375000026,null,{"$f":"286.867-15.8271*CS92+0.30502*CS92^2-0.0029229*CS92^3+0.0000164302*CS92^4-5.80497*10^-8*CS92^5+1.32295*10^-10*CS92^6-1.89098*10^-13*CS92^7+1.34034*10^-16*CS92^8","v":-20.827668984374945}]
[null,null,null,null,null,null,null,null,null,null,null,null,null,null,null,null,null,null,null,null,null,null,null,null,null,null,null,null,null,null,null,null,null,null,null,null,null,null,null,null,null,null,null,null,null,null,null,null,null,null,null,null,null,null,null,null,null,null,null,null,null,null,null,null,null,null,null,null,null,null,null,null,null,null,null,null,null,null,null,null,null,null,null,null,null,null,null,null,null,null,null,null,null,null,null,null,60,-33.789048000000008,-33.510894936000007,-33.656569863999998,-32.749470560000006,-23.038893017600042,null,{"$f":"286.867-15.8271*CS93+0.30502*CS93^2-0.0029229*CS93^3+0.0000164302*CS93^4-5.80497*10^-8*CS93^5+1.32295*10^-10*CS93^6-1.89098*10^-13*CS93^7+1.34034*10^-16*CS93^8","v":-22.571940012185511}]
[null,null,null,null,null,null,null,null,null,null,null,null,null,null,null,null,null,null,null,null,null,null,null,null,null,null,null,null,null,null,null,null,null,null,null,null,null,null,null,null,null,null,null,null,null,null,null,null,null,null,null,null,null,null,null,null,null,null,null,null,null,null,null,null,null,null,null,null,null,null,null,null,null,null,null,null,null,null,null,null,null,null,null,null,null,null,null,null,null,null,null,null,null,null,null,null,70,-21.429232000000017,-21.257344902999996,-21.328511761499996,-20.982540334999999,-18.064510605399914,null,{"$f":"286.867-15.8271*CS94+0.30502*CS94^2-0.0029229*CS94^3+0.0000164302*CS94^4-5.80497*10^-8*CS94^5+1.32295*10^-10*CS94^6-1.89098*10^-13*CS94^7+1.34034*10^-16*CS94^8","v":-17.977389743416644}]
[null,null,null,null,null,null,null,null,null,null,null,null,null,null,null,null,null,null,null,null,null,null,null,null,null,null,null,null,null,null,null,null,null,null,null,null,null,null,null,null,null,null,null,null,null,null,null,null,null,null,null,null,null,null,null,null,null,null,null,null,null,null,null,null,null,null,null,null,null,null,null,null,null,null,null,null,null,null,null,null,null,null,null,null,null,null,null,null,null,null,null,null,null,null,null,null,80,-10.144752000000011,-10.057255552000006,-10.079139584000005,-10.033112959999999,-9.9880788223999275,null,{"$f":"286.867-15.8271*CS95+0.30502*CS95^2-0.0029229*CS95^3+0.0000164302*CS95^4-5.80497*10^-8*CS95^5+1.32295*10^-10*CS95^6-1.89098*10^-13*CS95^7+1.34034*10^-16*CS95^8","v":-9.994525232025282}]
[null,null,null,null,null,null,null,null,null,null,null,null,null,null,null,null,null,null,null,null,null,null,null,null,null,null,null,null,null,null,null,null,null,null,null,null,null,null,null,null,null,null,null,null,null,null,null,null,null,null,null,null,null,null,null,null,null,null,null,null,null,null,null,null,null,null,null,null,null,null,null,null,null,null,null,null,null,null,null,null,null,null,null,null,null,null,null,null,null,null,null,null,null,null,null,null,90,6.4391999999998006E-2,8.735759099998866E-2,9.4688178499987868E-2,1.6560415000005824E-2,-0.65019324860016958,null,{"$f":"286.867-15.8271*CS96+0.30502*CS96^2-0.0029229*CS96^3+0.0000164302*CS96^4-5.80497*10^-8*CS96^5+1.32295*10^-10*CS96^6-1.89098*10^-13*CS96^7+1.34034*10^-16*CS96^8","v":-0.65689073436857315}]
[null,null,null,null,null,null,null,null,null,null,null,null,null,null,null,null,null,null,null,null,null,null,null,null,null,null,null,null,null,null,null,null,null,null,null,null,null,null,null,null,null,null,null,null,null,null,null,null,null,null,null,null,null,null,null,null,null,null,null,null,null,null,null,null,null,null,null,null,null,null,null,null,null,null,null,null,null,null,null,null,null,null,null,null,null,null,null,null,null,null,null,null,null,null,null,null,100,9.1981999999999999,9.1744790000000105,9.1956150000000108,9.1015000000000192,8.7013999999999569,null,{"$f":"286.867-15.8271*CS97+0.30502*CS97^2-0.0029229*CS97^3+0.0000164302*CS97^4-5.80497*10^-8*CS97^5+1.32295*10^-10*CS97^6-1.89098*10^-13*CS97^7+1.34034*10^-16*CS97^8","v":8.7055400000000329}]
[null,null,null,null,null,null,null,null,null,null,null,null,null,null,null,null,null,null,null,null,null,null,null,null,null,null,null,null,null,null,null,null,null,null,null,null,null,null,null,null,null,null,null,null,null,null,null,null,null,null,null,null,null,null,null,null,null,null,null,null,null,null,null,null,null,null,null,null,null,null,null,null,null,null,null,null,null,null,null,null,null,null,null,null,null,null,null,null,null,null,null,null,null,null,null,null,110,17.25667199999998,17.202093149000003,17.22578631850001,17.172194364999985,17.286484119399788,null,{"$f":"286.867-15.8271*CS98+0.30502*CS98^2-0.0029229*CS98^3+0.0000164302*CS98^4-5.80497*10^-8*CS98^5+1.32295*10^-10*CS98^6-1.89098*10^-13*CS98^7+1.34034*10^-16*CS98^8","v":17.289408233015756}]
[null,null,null,null,null,null,null,null,null,null,null,null,null,null,null,null,null,null,null,null,null,null,null,null,null,null,null,null,null,null,null,null,null,null,null,null,null,null,null,null,null,null,null,null,null,null,null,null,null,null,null,null,null,null,null,null,null,null,null,null,null,null,null,null,null,null,null,null,null,null,null,null,null,null,null,null,null,null,null,null,null,null,null,null,null,null,null,null,null,null,null,null,null,null,null,null,120,24.239807999999982,24.168184511999996,24.186849536,24.192797439999989,24.680252953599641,null,{"$f":"286.867-15.8271*CS99+0.30502*CS99^2-0.0029229*CS99^3+0.0000164302*CS99^4-5.80497*10^-8*CS99^5+1.32295*10^-10*CS99^6-1.89098*10^-13*CS99^7+1.34034*10^-16*CS99^8","v":24.672514612326559}]
[null,null,null,null,null,null,null,null,null,null,null,null,null,null,null,null,null,null,null,null,null,null,null,null,null,null,null,null,null,null,null,null,null,null,null,null,null,null,null,null,null,null,null,null,null,null,null,null,null,null,null,null,null,null,null,null,null,null,null,null,null,null,null,null,null,null,null,null,null,null,null,null,null,null,null,null,null,null,null,null,null,null,null,null,null,null,null,null,null,null,null,null,null,null,null,null,130,30.147607999999991,30.070737562999987,30.079954018500001,30.139325514999989,30.714393818599206,null,{"$f":"286.867-15.8271*CS100+0.30502*CS100^2-0.0029229*CS100^3+0.0000164302*CS100^4-5.80497*10^-8*CS100^5+1.32295*10^-10*CS100^6-1.89098*10^-13*CS100^7+1.34034*10^-16*CS100^8","v":30.695466914192263}]
[null,null,null,null,null,null,null,null,null,null,null,null,null,null,null,null,null,null,null,null,null,null,null,null,null,null,null,null,null,null,null,null,null,null,null,null,null,null,null,null,null,null,null,null,null,null,null,null,null,null,null,null,null,null,null,null,null,null,null,null,null,null,null,null,null,null,null,null,null,null,null,null,null,null,null,null,null,null,null,null,null,null,null,null,null,null,null,null,null,null,null,null,null,null,null,null,140,34.980071999999964,34.907736776000014,34.905751095999996,34.997854240000002,35.391371814400173,null,{"$f":"286.867-15.8271*CS101+0.30502*CS101^2-0.0029229*CS101^3+0.0000164302*CS101^4-5.80497*10^-8*CS101^5+1.32295*10^-10*CS101^6-1.89098*10^-13*CS101^7+1.34034*10^-16*CS101^8","v":35.366575079270234}]
[null,null,null,null,null,null,null,null,null,null,null,null,null,null,null,null,null,null,null,null,null,null,null,null,null,null,null,null,null,null,null,null,null,null,null,null,null,null,null,null,null,null,null,null,null,null,null,null,null,null,null,null,null,null,null,null,null,null,null,null,null,null,null,null,null,null,null,null,null,null,null,null,null,null,null,null,null,null,null,null,null,null,null,null,null,null,null,null,null,null,null,null,null,null,null,null,150,38.737200000000001,38.677166624999977,38.664394062499987,38.762715624999984,38.811915624999841,null,{"$f":"286.867-15.8271*CS102+0.30502*CS102^2-0.0029229*CS102^3+0.0000164302*CS102^4-5.80497*10^-8*CS102^5+1.32295*10^-10*CS102^6-1.89098*10^-13*CS102^7+1.34034*10^-16*CS102^8","v":38.786677890624603}]
[null,null,null,null,null,null,null,null,null,null,null,null,null,null,null,null,null,null,null,null,null,null,null,null,null,null,null,null,null,null,null,null,null,null,null,null,null,null,null,null,null,null,null,null,null,null,null,null,null,null,null,null,null,null,null,null,null,null,null,null,null,null,null,null,null,null,null,null,null,null,null,null,null,null,null,null,null,null,null,null,null,null,null,null,null,null,null,null,null,null,null,null,null,null,null,null,160,41.418991999999974,41.377011583999987,41.355538175999975,41.434695040000008,41.115704806400629,null,{"$f":"286.867-15.8271*CS103+0.30502*CS103^2-0.0029229*CS103^3+0.0000164302*CS103^4-5.80497*10^-8*CS103^5+1.32295*10^-10*CS103^6-1.89098*10^-13*CS103^7+1.34034*10^-16*CS103^8","v":41.091126068328663}]
[null,null,null,null,null,null,null,null,null,null,null,null,null,null,null,null,null,null,null,null,null,null,null,null,null,null,null,null,null,null,null,null,null,null,null,null,null,null,null,null,null,null,null,null,null,null,null,null,null,null,null,null,null,null,null,null,null,null,null,null,null,null,null,null,null,null,null,null,null,null,null,null,null,null,null,null,null,null,null,null,null,null,null,null,null,null,null,null,null,null,null,null,null,null,null,null,170,43.025448000000011,43.005256127000017,42.978340658499974,43.019228215000012,42.435258562600836,null,{"$f":"286.867-15.8271*CS104+0.30502*CS104^2-0.0029229*CS104^3+0.0000164302*CS104^4-5.80497*10^-8*CS104^5+1.32295*10^-10*CS104^6-1.89098*10^-13*CS104^7+1.34034*10^-16*CS104^8","v":42.406686980161027}]
[null,null,null,null,null,null,null,null,null,null,null,null,null,null,null,null,null,null,null,null,null,null,null,null,null,null,null,null,null,null,null,null,null,null,null,null,null,null,null,null,null,null,null,null,null,null,null,null,null,null,null,null,null,null,null,null,null,null,null,null,null,null,null,null,null,null,null,null,null,null,null,null,null,null,null,null,null,null,null,null,null,null,null,null,null,null,null,null,null,null,null,null,null,null,null,null,180,43.556567999999999,43.559884727999979,43.531460695999954,43.524598240000039,42.863026009599594,null,{"$f":"286.867-15.8271*CS105+0.30502*CS105^2-0.0029229*CS105^3+0.0000164302*CS105^4-5.80497*10^-8*CS105^5+1.32295*10^-10*CS105^6-1.89098*10^-13*CS105^7+1.34034*10^-16*CS105^8","v":42.821676592997306}]
[null,null,null,null,null,null,null,null,null,null,null,null,null,null,null,null,null,null,null,null,null,null,null,null,null,null,null,null,null,null,null,null,null,null,null,null,null,null,null,null,null,null,null,null,null,null,null,null,null,null,null,null,null,null,null,null,null,null,null,null,null,null,null,null,null,null,null,null,null,null,null,null,null,null,null,null,null,null,null,null,null,null,null,null,null,null,null,null,null,null,null,null,null,null,null,null,190,43.012351999999964,43.038881860999993,43.013059438499972,42.960132565000038,42.431677927400642,null,{"$f":"286.867-15.8271*CS106+0.30502*CS106^2-0.0029229*CS106^3+0.0000164302*CS106^4-5.80497*10^-8*CS106^5+1.32295*10^-10*CS106^6-1.89098*10^-13*CS106^7+1.34034*10^-16*CS106^8","v":42.368164714523061}]
[null,null,null,null,null,null,null,null,null,null,null,null,null,null,null,null,null,null,null,null,null,null,null,null,null,null,null,null,null,null,null,null,null,null,null,null,null,null,null,null,null,null,null,null,null,null,null,null,null,null,null,null,null,null,null,null,null,null,null,null,null,null,null,null,null,null,null,null,null,null,null,null,null,null,null,null,null,null,null,null,null,null,null,null,null,null,null,null,null,null,null,null,null,null,null,null,200,41.392800000000022,41.44023200000003,41.420800000000035,41.334400000000059,41.107600000002549,null,{"$f":"286.867-15.8271*CS107+0.30502*CS107^2-0.0029229*CS107^3+0.0000164302*CS107^4-5.80497*10^-8*CS107^5+1.32295*10^-10*CS107^6-1.89098*10^-13*CS107^7+1.34034*10^-16*CS107^8","v":41.015639999998882}]
[null,null,null,null,null,null,null,null,null,null,null,null,null,null,null,null,null,null,null,null,null,null,null,null,null,null,null,null,null,null,null,null,null,null,null,null,null,null,null,null,null,null,null,null,null,null,null,null,null,null,null,null,null,null,null,null,null,null,null,null,null,null,null,null,null,null,null,null,null,null,null,null,null,null,null,null,null,null,null,null,null,null,null,null,null,null,null,null,null,null,null,null,null,null,null,null,210,38.697911999999945,38.761919618999968,38.751847458500052,38.653407715000064,38.797587543402415,null,{"$f":"286.867-15.8271*CS108+0.30502*CS108^2-0.0029229*CS108^3+0.0000164302*CS108^4-5.80497*10^-8*CS108^5+1.32295*10^-10*CS108^6-1.89098*10^-13*CS108^7+1.34034*10^-16*CS108^8","v":38.676061624044735}]
[null,null,null,null,null,null,null,null,null,null,null,null,null,null,null,null,null,null,null,null,null,null,null,null,null,null,null,null,null,null,null,null,null,null,null,null,null,null,null,null,null,null,null,null,null,null,null,null,null,null,null,null,null,null,null,null,null,null,null,null,null,null,null,null,null,null,null,null,null,null,null,null,null,null,null,null,null,null,null,null,null,null,null,null,null,null,null,null,null,null,null,null,null,null,null,null,220,34.927687999999989,35.001929191999992,35.002868856000042,34.918798239999987,35.36874172159969,null,{"$f":"286.867-15.8271*CS109+0.30502*CS109^2-0.0029229*CS109^3+0.0000164302*CS109^4-5.80497*10^-8*CS109^5+1.32295*10^-10*CS109^6-1.89098*10^-13*CS109^7+1.34034*10^-16*CS109^8","v":35.22076494218345}]
[null,null,null,null,null,null,null,null,null,null,null,null,null,null,null,null,null,null,null,null,null,null,null,null,null,null,null,null,null,null,null,null,null,null,null,null,null,null,null,null,null,null,null,null,null,null,null,null,null,null,null,null,null,null,null,null,null,null,null,null,null,null,null,null,null,null,null,null,null,null,null,null,null,null,null,null,null,null,null,null,null,null,null,null,null,null,null,null,null,null,null,null,null,null,null,null,230,30.082128000000012,30.158245193000027,30.170033198500018,30.126046465000002,30.681567250600892,null,{"$f":"286.867-15.8271*CS110+0.30502*CS110^2-0.0029229*CS110^3+0.0000164302*CS110^4-5.80497*10^-8*CS110^5+1.32295*10^-10*CS110^6-1.89098*10^-13*CS110^7+1.34034*10^-16*CS110^8","v":30.510228892299438}]
[null,null,null,null,null,null,null,null,null,null,null,null,null,null,null,null,null,null,null,null,null,null,null,null,null,null,null,null,null,null,null,null,null,null,null,null,null,null,null,null,null,null,null,null,null,null,null,null,null,null,null,null,null,null,null,null,null,null,null,null,null,null,null,null,null,null,null,null,null,null,null,null,null,null,null,null,null,null,null,null,null,null,null,null,null,null,null,null,null,null,null,null,null,null,null,null,240,24.161231999999927,24.228852096000033,24.249011456000005,24.262656639999989,24.636271590397428,null,{"$f":"286.867-15.8271*CS111+0.30502*CS111^2-0.0029229*CS111^3+0.0000164302*CS111^4-5.80497*10^-8*CS111^5+1.32295*10^-10*CS111^6-1.89098*10^-13*CS111^7+1.34034*10^-16*CS111^8","v":24.438253311080189}]
[null,null,null,null,null,null,null,null,null,null,null,null,null,null,null,null,null,null,null,null,null,null,null,null,null,null,null,null,null,null,null,null,null,null,null,null,null,null,null,null,null,null,null,null,null,null,null,null,null,null,null,null,null,null,null,null,null,null,null,null,null,null,null,null,null,null,null,null,null,null,null,null,null,null,null,null,null,null,null,null,null,null,null,null,null,null,null,null,null,null,null,null,null,null,null,null,250,17.164999999999964,17.211734375000024,17.234976562500002,17.306359375000056,17.232265624999854,null,{"$f":"286.867-15.8271*CS112+0.30502*CS112^2-0.0029229*CS112^3+0.0000164302*CS112^4-5.80497*10^-8*CS112^5+1.32295*10^-10*CS112^6-1.89098*10^-13*CS112^7+1.34034*10^-16*CS112^8","v":16.992634765621915}]
[null,null,null,null,null,null,null,null,null,null,null,null,null,null,null,null,null,null,null,null,null,null,null,null,null,null,null,null,null,null,null,null,null,null,null,null,null,null,null,null,null,null,null,null,null,null,null,null,null,null,null,null,null,null,null,null,null,null,null,null,null,null,null,null,null,null,null,null,null,null,null,null,null,null,null,null,null,null,null,null,null,null,null,null,null,null,null,null,null,null,null,null,null,null,null,null,260,9.0934320000000071,9.1048765039999537,9.1226034160000111,9.2233086400000559,8.6408658303989796,null,{"$f":"286.867-15.8271*CS113+0.30502*CS113^2-0.0029229*CS113^3+0.0000164302*CS113^4-5.80497*10^-8*CS113^5+1.32295*10^-10*CS113^6-1.89098*10^-13*CS113^7+1.34034*10^-16*CS113^8","v":8.3349699254786174}]
[null,null,null,null,null,null,null,null,null,null,null,null,null,null,null,null,null,null,null,null,null,null,null,null,null,null,null,null,null,null,null,null,null,null,null,null,null,null,null,null,null,null,null,null,null,null,null,null,null,null,null,null,null,null,null,null,null,null,null,null,null,null,null,null,null,null,null,null,null,null,null,null,null,null,null,null,null,null,null,null,null,null,null,null,null,null,null,null,null,null,null,null,null,null,null,null,270,-5.3471999999942454E-2,-9.3737043000010623E-2,-9.3931121500029136E-2,-3.3721234999944727E-2,-0.7088020693990984,null,{"$f":"286.867-15.8271*CS114+0.30502*CS114^2-0.0029229*CS114^3+0.0000164302*CS114^4-5.80497*10^-8*CS114^5+1.32295*10^-10*CS114^6-1.89098*10^-13*CS114^7+1.34034*10^-16*CS114^8","v":-1.0972440745049425}]
[null,null,null,null,null,null,null,null,null,null,null,null,null,null,null,null,null,null,null,null,null,null,null,null,null,null,null,null,null,null,null,null,null,null,null,null,null,null,null,null,null,null,null,null,null,null,null,null,null,null,null,null,null,null,null,null,null,null,null,null,null,null,null,null,null,null,null,null,null,null,null,null,null,null,null,null,null,null,null,null,null,null,null,null,null,null,null,null,null,null,null,null,null,null,null,null,280,-10.275712000000055,-10.386121791999983,-10.420948223999998,-10.527138559999969,-10.030697958396559,null,{"$f":"286.867-15.8271*CS115+0.30502*CS115^2-0.0029229*CS115^3+0.0000164302*CS115^4-5.80497*10^-8*CS115^5+1.32295*10^-10*CS115^6-1.89098*10^-13*CS115^7+1.34034*10^-16*CS115^8","v":-10.462502405019222}]
[null,null,null,null,null,null,null,null,null,null,null,null,null,null,null,null,null,null,null,null,null,null,null,null,null,null,null,null,null,null,null,null,null,null,null,null,null,null,null,null,null,null,null,null,null,null,null,null,null,null,null,null,null,null,null,null,null,null,null,null,null,null,null,null,null,null,null,null,null,null,null,null,null,null,null,null,null,null,null,null,null,null,null,null,null,null,null,null,null,null,null,null,null,null,null,null,290,-21.573287999999991,-21.774293268999962,-21.865267101500017,-22.3363372849999,-18.069560696600092,null,{"$f":"286.867-15.8271*CS116+0.30502*CS116^2-0.0029229*CS116^3+0.0000164302*CS116^4-5.80497*10^-8*CS116^5+1.32295*10^-10*CS116^6-1.89098*10^-13*CS116^7+1.34034*10^-16*CS116^8","v":-18.356928146349674}]
[null,null,null,null,null,null,null,null,null,null,null,null,null,null,null,null,null,null,null,null,null,null,null,null,null,null,null,null,null,null,null,null,null,null,null,null,null,null,null,null,null,null,null,null,null,null,null,null,null,null,null,null,null,null,null,null,null,null,null,null,null,null,null,null,null,null,null,null,null,null,null,null,null,null,null,null,null,null,null,null,null,null,null,null,null,null,null,null,null,null,null,null,null,null,null,null,300,-33.946199999999976,-34.26026700000007,-34.43420500000002,-35.559500000000014,-22.975399999997535,null,{"$f":"286.867-15.8271*CS117+0.30502*CS117^2-0.0029229*CS117^3+0.0000164302*CS117^4-5.80497*10^-8*CS117^5+1.32295*10^-10*CS117^6-1.89098*10^-13*CS117^7+1.34034*10^-16*CS117^8","v":-22.620860000013636}]
[null,null,null,null,null,null,null,null,null,null,null,null,null,null,null,null,null,null,null,null,null,null,null,null,null,null,null,null,null,null,null,null,null,null,null,null,null,null,null,null,null,null,null,null,null,null,null,null,null,null,null,null,null,null,null,null,null,null,null,null,null,null,null,null,null,null,null,null,null,null,null,null,null,null,null,null,null,null,null,null,null,null,null,null,null,null,null,null,null,null,null,null,null,null,null,null,310,-47.394448000000011,-47.846058511000066,-48.13557720150002,-50.315400935000014,-22.164786832607206,null,{"$f":"286.867-15.8271*CS118+0.30502*CS118^2-0.0029229*CS118^3+0.0000164302*CS118^4-5.80497*10^-8*CS118^5+1.32295*10^-10*CS118^6-1.89098*10^-13*CS118^7+1.34034*10^-16*CS118^8","v":-20.105060957084788}]
[null,null,null,null,null,null,null,null,null,null,null,null,null,null,null,null,null,null,null,null,null,null,null,null,null,null,null,null,null,null,null,null,null,null,null,null,null,null,null,null,null,null,null,null,null,null,null,null,null,null,null,null,null,null,null,null,null,null,null,null,null,null,null,null,null,null,null,null,null,null,null,null,null,null,null,null,null,null,null,null,null,null,null,null,null,null,null,null,null,null,null,null,null,null,null,null,320,-61.918032000000039,-62.533683328000066,-62.977697024000058,-66.7452089599999,-12.168942310385319,null,{"$f":"286.867-15.8271*CS119+0.30502*CS119^2-0.0029229*CS119^3+0.0000164302*CS119^4-5.80497*10^-8*CS119^5+1.32295*10^-10*CS119^6-1.89098*10^-13*CS119^7+1.34034*10^-16*CS119^8","v":-6.3906763477862114}]
[null,null,null,null,null,null,null,null,null,null,null,null,null,null,null,null,null,null,null,null,null,null,null,null,null,null,null,null,null,null,null,null,null,null,null,null,null,null,null,null,null,null,null,null,null,null,null,null,null,null,null,null,null,null,null,null,null,null,null,null,null,null,null,null,null,null,null,null,null,null,null,null,null,null,null,null,null,null,null,null,null,null,null,null,null,null,null,null,null,null,null,null,null,null,null,null,330,-77.516951999999947,-78.325156976999963,-78.969375821500037,-85.014290585000026,11.531374882611999,null,{"$f":"286.867-15.8271*CS120+0.30502*CS120^2-0.0029229*CS120^3+0.0000164302*CS120^4-5.80497*10^-8*CS120^5+1.32295*10^-10*CS120^6-1.89098*10^-13*CS120^7+1.34034*10^-16*CS120^8","v":24.543470728960529}]
[null,null,null,null,null,null,null,null,null,null,null,null,null,null,null,null,null,null,null,null,null,null,null,null,null,null,null,null,null,null,null,null,null,null,null,null,null,null,null,null,null,null,null,null,null,null,null,null,null,null,null,null,null,null,null,null,null,null,null,null,null,null,null,null,null,null,null,null,null,null,null,null,null,null,null,null,null,null,null,null,null,null,null,null,null,null,null,null,null,null,null,null,null,null,null,null,340,-94.191207999999961,-95.222494983999994,-96.119922984000056,-105.31401295999956,54.684182566397794,null,{"$f":"286.867-15.8271*CS121+0.30502*CS121^2-0.0029229*CS121^3+0.0000164302*CS121^4-5.80497*10^-8*CS121^5+1.32295*10^-10*CS121^6-1.89098*10^-13*CS121^7+1.34034*10^-16*CS121^8","v":80.713199021956825}]
[null,null,null,null,null,null,null,null,null,null,null,null,null,null,null,null,null,null,null,null,null,null,null,null,null,null,null,null,null,null,null,null,null,null,null,null,null,null,null,null,null,null,null,null,null,null,null,null,null,null,null,null,null,null,null,null,null,null,null,null,null,null,null,null,null,null,null,null,null,null,null,null,null,null,null,null,null,null,null,null,null,null,null,null,null,null,null,null,null,null,null,null,null,null,null,null,350,-111.94079999999997,-113.22771287500002,-114.4391459375,-127.86354687499977,124.45779062499787,null,{"$f":"286.867-15.8271*CS122+0.30502*CS122^2-0.0029229*CS122^3+0.0000164302*CS122^4-5.80497*10^-8*CS122^5+1.32295*10^-10*CS122^6-1.89098*10^-13*CS122^7+1.34034*10^-16*CS122^8","v":172.58839664063635}]
[null,null,null,null,null,null,null,null,null,null,null,null,null,null,null,null,null,null,null,null,null,null,null,null,null,null,null,null,null,null,null,null,null,null,null,null,null,null,null,null,null,null,null,null,null,null,null,null,null,null,null,null,null,null,null,null,null,null,null,null,null,null,null,null,null,null,null,null,null,null,null,null,null,null,null,null,null,null,null,null,null,null,null,null,null,null,null,null,null,null,null,null,null,null,null,null,360,-130.76572799999997,-132.34282617600005,-133.93735014400013,-152.91166975999954,229.64551805440715,null,{"$f":"286.867-15.8271*CS123+0.30502*CS123^2-0.0029229*CS123^3+0.0000164302*CS123^4-5.80497*10^-8*CS123^5+1.32295*10^-10*CS123^6-1.89098*10^-13*CS123^7+1.34034*10^-16*CS123^8","v":313.62758974164171}]
[null,null,null,null,null,null,null,null,null,null,null,null,null,null,null,null,null,null,null,null,null,null,null,null,null,null,null,null,null,null,null,null,null,null,null,null,null,null,null,null,null,null,null,null,null,null,null,null,null,null,null,null,null,null,null,null,null,null,null,null,null,null,null,null,null,null,null,null,null,null,null,null,null,null,null,null,null,null,null,null,null,null,null,null,null,null,null,null,null,null,null,null,null,null,null,null,370,-150.66599199999996,-152.56985041299998,-154.62533910150006,-180.73856868500002,380.88361149862612,null,{"$f":"286.867-15.8271*CS124+0.30502*CS124^2-0.0029229*CS124^3+0.0000164302*CS124^4-5.80497*10^-8*CS124^5+1.32295*10^-10*CS124^6-1.89098*10^-13*CS124^7+1.34034*10^-16*CS124^8","v":520.89622608934587}]
[null,null,null,null,null,null,null,null,null,null,null,null,null,null,null,null,null,null,null,null,null,null,null,null,null,null,null,null,null,null,null,null,null,null,null,null,null,null,null,null,null,null,null,null,null,null,null,null,null,null,null,null,null,null,null,null,null,null,null,null,null,null,null,null,null,null,null,null,null,null,null,null,null,null,null,null,null,null,null,null,null,null,null,null,null,null,null,null,null,null,null,null,null,null,null,null,380,-171.64159200000006,-173.91080111200003,-176.51441434400004,-211.65764336000007,590.88236527363188,null,{"$f":"286.867-15.8271*CS125+0.30502*CS125^2-0.0029229*CS125^3+0.0000164302*CS125^4-5.80497*10^-8*CS125^5+1.32295*10^-10*CS125^6-1.89098*10^-13*CS125^7+1.34034*10^-16*CS125^8","v":815.77778761718946}]
[null,null,null,null,null,null,null,null,null,null,null,null,null,null,null,null,null,null,null,null,null,null,null,null,null,null,null,null,null,null,null,null,null,null,null,null,null,null,null,null,null,null,null,null,null,null,null,null,null,null,null,null,null,null,null,null,null,null,null,null,null,null,null,null,null,null,null,null,null,null,null,null,null,null,null,null,null,null,null,null,null,null,null,null,null,null,null,null,null,null,null,null,null,null,null,null,390,{"$f":"-130.53+1.93495*CS126-0.00537668*CS126^2","v":-193.69252800000004},{"$f":"-129.042+1.9052*CS126-0.00519676*CS126^2-3.35921*10^-7*CS126^3","v":-196.36769379899999},{"$f":"-130.516+1.94502*CS126-0.0055729*CS126^2+1.14613*10^-6*CS126^3-2.07515*10^-9*CS126^4","v":-199.61637544149994},{"$f":"-113.282+1.35985*CS126+0.00195332*CS126^2-0.0000448386*CS126^3+1.32064*10^-7*CS126^4-1.5025*10^-10*CS126^5","v":-246.01730913499978},{"$f":"227.71-12.5617*CS126+0.228564*CS126^2-0.00193073*CS126^3+8.6186*10^-6*CS126^4-1.97944*10^-8*CS126^5+1.83354*10^-11*CS126^6","v":874.67044287941826},null,{"$f":"286.867-15.8271*CS126+0.30502*CS126^2-0.0029229*CS126^3+0.0000164302*CS126^4-5.80497*10^-8*CS126^5+1.32295*10^-10*CS126^6-1.89098*10^-13*CS126^7+1.34034*10^-16*CS126^8","v":1224.7873865406291}]
[null,null,null,null,null,null,null,null,null,null,null,null,null,null,null,null,null,null,null,null,null,null,null,null,null,null,null,null,null,null,null,null,null,null,null,null,null,null,null,null,null,null,null,null,null,null,null,null,null,null,null,null,null,null,null,null,null,null,null,null,null,null,null,null,null,null,null,null,null,null,null,null,null,null,null,null,null,null,null,null,null,null,null,null,null,null,null,null,null,null,null,null,null,null,null,null,{"$f":"CS126+10","v":400},-216.81880000000001,-219.94254399999994,-223.94352000000001,-284.20280000000002,1249.8524000000325,null,{"$f":"286.867-15.8271*CS127+0.30502*CS127^2-0.0029229*CS127^3+0.0000164302*CS127^4-5.80497*10^-8*CS127^5+1.32295*10^-10*CS127^6-1.89098*10^-13*CS127^7+1.34034*10^-16*CS127^8","v":1780.4980399999622}]
[null,null,null,null,null,null,null,null,null,null,null,null,null,null,null,null,null,null,null,null,null,null,null,null,null,null,null,null,null,null,null,null,null,null,null,null,null,null,null,null,null,null,null,null,null,null,null,null,null,null,null,null,null,null,null,null,null,null,null,null,null,null,null,null,null,null,null,null,null,null,null,null,null,null,null,null,null,null,null,null,null,null,null,null,null,null,null,null,null,null,null,null,null,null,null,null,410,-241.02040800000009,-244.63736724100002,-249.5086436615,-326.63797158499983,1736.8794089914154,null,{"$f":"286.867-15.8271*CS128+0.30502*CS128^2-0.0029229*CS128^3+0.0000164302*CS128^4-5.80497*10^-8*CS128^5+1.32295*10^-10*CS128^6-1.89098*10^-13*CS128^7+1.34034*10^-16*CS128^8","v":2522.5903586321074}]
[null,null,null,null,null,null,null,null,null,null,null,null,null,null,null,null,null,null,null,null,null,null,null,null,null,null,null,null,null,null,null,null,null,null,null,null,null,null,null,null,null,null,null,null,null,null,null,null,null,null,null,null,null,null,null,null,null,null,null,null,null,null,null,null,null,null,null,null,null,null,null,null,null,null,null,null,null,null,null,null,null,null,null,null,null,null,null,null,null,null,null,null,null,null,null,null,420,-266.29735200000005,-270.45417904800001,-276.32504010399998,-373.78710415999944,2359.3331848576054,null,{"$f":"286.867-15.8271*CS129+0.30502*CS129^2-0.0029229*CS129^3+0.0000164302*CS129^4-5.80497*10^-8*CS129^5+1.32295*10^-10*CS129^6-1.89098*10^-13*CS129^7+1.34034*10^-16*CS129^8","v":3499.0369248991046}]
[null,null,null,null,null,null,null,null,null,null,null,null,null,null,null,null,null,null,null,null,null,null,null,null,null,null,null,null,null,null,null,null,null,null,null,null,null,null,null,null,null,null,null,null,null,null,null,null,null,null,null,null,null,null,null,null,null,null,null,null,null,null,null,null,null,null,null,null,null,null,null,null,null,null,null,null,null,null,null,null,null,null,null,null,null,null,null,null,null,null,null,null,null,null,null,null,430,-292.649632,-297.39499494699999,-304.40650104149995,-426.15670563499998,3144.2231127145642,null,{"$f":"286.867-15.8271*CS130+0.30502*CS130^2-0.0029229*CS130^3+0.0000164302*CS130^4-5.80497*10^-8*CS130^5+1.32295*10^-10*CS130^6-1.89098*10^-13*CS130^7+1.34034*10^-16*CS130^8","v":4767.4331774273014}]
[null,null,null,null,null,null,null,null,null,null,null,null,null,null,null,null,null,null,null,null,null,null,null,null,null,null,null,null,null,null,null,null,null,null,null,null,null,null,null,null,null,null,null,null,null,null,null,null,null,null,null,null,null,null,null,null,null,null,null,null,null,null,null,null,null,null,null,null,null,null,null,null,null,null,null,null,null,null,null,null,null,null,null,null,null,null,null,null,null,null,null,null,null,null,null,null,440,-320.07724800000005,-325.46183046399995,-333.76731622399996,-484.2973145599999,4122.2965767423739,null,{"$f":"286.867-15.8271*CS131+0.30502*CS131^2-0.0029229*CS131^3+0.0000164302*CS131^4-5.80497*10^-8*CS131^5+1.32295*10^-10*CS131^6-1.89098*10^-13*CS131^7+1.34034*10^-16*CS131^8","v":6396.4871580293402}]
[null,null,null,null,null,null,null,null,null,null,null,null,null,null,null,null,null,null,null,null,null,null,null,null,null,null,null,null,null,null,null,null,null,null,null,null,null,null,null,null,null,null,null,null,null,null,null,null,null,null,null,null,null,null,null,null,null,null,null,null,null,null,null,null,null,null,null,null,null,null,null,null,null,null,null,null,null,null,null,null,null,null,null,null,null,null,null,null,null,null,null,null,null,null,null,null,450,-348.5802000000001,-354.6567011250001,-364.42227343749994,-548.80530312499968,5328.3624906250043,null,{"$f":"286.867-15.8271*CS132+0.30502*CS132^2-0.0029229*CS132^3+0.0000164302*CS132^4-5.80497*10^-8*CS132^5+1.32295*10^-10*CS132^6-1.89098*10^-13*CS132^7+1.34034*10^-16*CS132^8","v":8467.6810185156646}]
[null,null,null,null,null,null,null,null,null,null,null,null,null,null,null,null,null,null,null,null,null,null,null,null,null,null,null,null,null,null,null,null,null,null,null,null,null,null,null,null,null,null,null,null,null,null,null,null,null,null,null,null,null,null,null,null,null,null,null,null,null,null,null,null,null,null,null,null,null,null,null,null,null,null,null,null,null,null,null,null,null,null,null,null,null,null,null,null,null,null,null,null,null,null,null,null,460,-378.15848800000003,-384.98162245599985,-396.38665850400002,-620.32468015999939,6801.6280294784228,null,{"$f":"286.867-15.8271*CS133+0.30502*CS133^2-0.0029229*CS133^3+0.0000164302*CS133^4-5.80497*10^-8*CS133^5+1.32295*10^-10*CS133^6-1.89098*10^-13*CS133^7+1.34034*10^-16*CS133^8","v":11077.117724819225}]